[Event "French Top 16-A 2024"]
[Site "Chartres"]
[Date "2024.06.01"]
[Round "1.10"]
[White "Ter-Sahakyan, Samvel"]
[Black "Solakian-Van Eyll, Jerome"]
[Result "1/2-1/2"]
[ECO "D23"]
[WhiteElo "2652"]
[BlackElo "2247"]
[Annotator "TA"]
[PlyCount "109"]
[EventDate "2024.06.01"]
[EventType "team-tourn"]
[EventCountry "FRA"]
[SourceTitle "playchess.com"]
[Source "ChessBase"]
[SourceQuality "1"]
[TimeControl "40/5400+30:1800+30"]

{[%evp 22,109,31,35,36,28,21,21,52,54,67,45,52,60,62,61,55,6,5,7,39,45,44,52,68,28,31,34,34,26,27,1,20,6,36,42,54,34,44,10,20,16,64,27,62,11,18,16,51,0,0,0,0,0,0,0,0,0,0,0,0,0,0,0,0,0,0,0,0,0,0,0,0,0,0,0,0,0,0,0,0,0,0,0,0,0,0,0,0,0]} 1. d4 {[%emt 0:00:15]} d5 {[%emt 0:01:21]} 2. c4 {[%emt 0:00:25]} dxc4 {[%emt 0:01:02]} 3. Nf3 {[%emt 0:01:34]} Nf6 {[%emt 0:00:25]} 4. Qa4+ {[%emt 0:02:44]} Nbd7 {[%emt 0:09:28]} 5. Qxc4 {[%emt 0:10:06]} e6 {[%emt 0:03:29]} 6. g3 {[%emt 0:00:50] D23: Queen's Gambit Accepted: 3 Nf3 Nf6 sidelines.} a6 {[%emt 0:16:05]} 7. Bg5 {[%emt 0:12:01]} b5 {[%emt 0:06:45]} 8. Qc6 {[%emt 0:04:16]} Rb8 {[%emt 0:07:31]} 9. Bxf6 {[%emt 0:00:56]} Qxf6 $146 {[%emt 0:22:02]} ({Predecessor:} 9... gxf6 10. Bg2 Bb4+ 11. Nbd2 Bxd2+ 12. Kxd2 Bb7 13. Qc3 c5 14. Rhd1 b4 15. Qd3 cxd4 16. Qxd4 {1-0 Laurusas,T (2567)-Pultinevicius,P (2536) LTU-ch Kaunas 2022 (5)}) 10. Qxc7 {[%emt 0:10:58]} Bb4+ {[%emt 0:04:51]} 11. Nc3 {[%emt 0:02:32]} Bb7 {[%emt 0:09:29]} 12. Bg2 {[%emt 0:03:06]} O-O {[%emt 0:02:46]} 13. O-O {[%emt 0:10:58]} Nb6 {[%emt 0:00:16]} 14. a3 {[%emt 0:11:00]} Rfc8 {[%emt 0:08:01]} 15. Qxb6 {[%emt 0:03:39]} Bxf3 {[%emt 0:00:06]} 16. Qxa6 {[%emt 0:01:24]} Bxc3 {[%emt 0:00:09]} 17. bxc3 {[%emt 0:03:54]} Bxe2 {[%emt 0:00:04]} 18. Rfe1 {[%emt 0:02:46]} Bf3 {[%emt 0:00:37]} 19. Re3 {[%emt 0:01:29]} (19. Qd6 $14) 19... Bxg2 $11 {[%emt 0:00:03]} 20. Kxg2 {[%emt 0:00:03]} Qf5 {[%emt 0:00:42]} 21. Qd6 {[%emt 0:03:40]} Qc2 {[%emt 0:01:05]} 22. Rae1 {[%emt 0:01:15]} Qb3 {[%emt 0:00:42]} 23. Qb4 {[%emt 0:02:39]} Qd5+ {[%emt 0:00:54]} 24. Kg1 {[%emt 0:02:34]} Rc4 {[%emt 0:00:04]} 25. Qb3 {[%emt 0:01:31]} Qc6 {[%emt 0:02:02]} 26. Rd3 {[%emt 0:02:24]} g6 {[%emt 0:00:43]} 27. Re5 {[%emt 0:01:07]} Rc8 {[%emt 0:01:06]} 28. Qxb5 {[%emt 0:02:03]} Qxb5 {[%emt 0:00:31]} 29. Rxb5 {[%emt 0:00:03]} Rxc3 {[%emt 0:00:04]} 30. Rb3 {[%emt 0:00:05]} Rxb3 {[%emt 0:01:03]} 31. Rxb3 {[%emt 0:00:03]} Rc2 {[%emt 0:00:25]} (31... Ra8 $11 {deserves consideration.}) 32. Kg2 {[%emt 0:01:46]} Rd2 {[%emt 0:00:03]} 33. Kf3 {[%emt 0:00:40]} ({White should play} 33. a4 $14) 33... Rxd4 $11 {[%emt 0:01:26]} 34. Ke3 {[%emt 0:00:06]} Rd1 {[%emt 0:00:08]} 35. Rd3 {[%emt 0:00:24]} ({White should try} 35. a4 $14) 35... Ra1 $11 {[%emt 0:00:08]} 36. Kd4 {[%emt 0:01:08]} Ra2 {[%emt 0:00:25]} 37. Rf3 {[%emt 0:01:08]} f5 {[%emt 0:00:26]} 38. Kc4 {[%emt 0:00:17]} e5 {[%emt 0:00:55]} 39. Kb3 {[%emt 0:00:03]} Rd2 {[%emt 0:00:56]} 40. a4 {[%emt 0:02:01]} e4 {[%emt 0:00:12]} 41. Rc3 {[%emt 0:01:44]} Rxf2 {[%emt 0:26:18]} 42. a5 {[%emt 0:00:16]} Rd2 {[%emt 0:02:13]} (42... Rxh2 $2 43. a6 Rh1 44. Kb2 $18 (44. a7 Ra1 $18)) 43. a6 {[%emt 0:30:07]} Rd7 {[%emt 0:00:26]} 44. Kc4 {[%emt 0:00:00]} Kf7 {[%emt 0:01:11]} 45. Ra3 {[%emt 0:00:00]} Ra7 {[%emt 0:01:10]} 46. Kb5 {[%emt 0:00:00]} Ke6 {[%emt 0:00:49]} 47. Kb6 {[%emt 0:00:00]} Ra8 {[%emt 0:00:16]} 48. Kb7 {[%emt 0:02:30]} Re8 {[%emt 0:01:25]} 49. a7 {[%emt 0:00:00]} Kd5 {[%emt 0:00:54]} 50. Rc3 {[%emt 0:00:00]} (50. a8=B $2 e3 51. Kb6+ Kd4 52. Ra4+ Kc3 $19) 50... Kd4 {[%emt 0:00:33]} 51. Rc8 $1 {[%emt 0:00:00]} (51. a8=R $2 Rxa8 52. Rc2 Ra1 $19) 51... Re7+ $1 {[%emt 0:00:05]} (51... Rxc8 52. Kxc8 e3 53. a8=Q $18 (53. a8=B $2 e2 $19)) 52. Rc7 $1 {[%emt 0:00:00]} (52. Kb8 Rxa7 53. Kxa7 e3 $19) 52... Re8 {[%emt 0:00:10]} 53. Rc8 {[%emt 0:00:00]} (53. a8=B e3 54. Rd7+ Kc3 55. Rc7+ Kd2 56. Rd7+ Kc1 57. Rc7+ Kb1 $19) 53... Re7+ $1 {[%emt 0:00:05]} (53... Rxc8 54. Kxc8 e3 55. a8=Q $18 (55. a8=B $2 e2 $19)) 54. Rc7 $1 {[%emt 0:00:00]} Re8 {[%emt 0:00:07]} 55. Rc8 {[%emt 0:00:00]} (55. a8=B e3 56. Ka7 (56. Rd7+ $2 Kc3 $19) 56... e2 $19) 1/2-1/2

[Event "French Top 16-A 2024"]
[Site "Chartres"]
[Date "2024.06.01"]
[Round "1.10"]
[White "Sankalp Gupta"]
[Black "Lupulescu, Constantin"]
[Result "1/2-1/2"]
[ECO "A13"]
[WhiteElo "2532"]
[BlackElo "2588"]
[Annotator "TA"]
[PlyCount "55"]
[EventDate "2024.06.01"]
[EventType "team-tourn"]
[EventCountry "FRA"]
[SourceTitle "playchess.com"]
[Source "ChessBase"]
[SourceQuality "1"]
[TimeControl "40/5400+30:1800+30"]

{[%evp 9,55,18,31,1,19,16,18,8,3,0,0,0,0,-11,-2,-35,-23,-36,-31,-37,0,0,0,-68,-61,-68,-72,-71,-83,-87,-27,-34,0,0,0,0,0,0,0,0,0,0,0,0,0,0,0,0]} 1. Nf3 {[%emt 0:02:01]} d5 {[%emt 0:00:09]} 2. c4 {[%emt 0:00:07]} e6 {[%emt 0:00:31]} 3. g3 {[%emt 0:00:03]} d4 {[%emt 0:02:17]} 4. Bg2 {[%emt 0:02:21]} c5 {[%emt 0:00:25]} 5. O-O {[%emt 0:00:10]} Ne7 {[%emt 0:01:12]} 6. e3 {[%emt 0:05:11]} Nec6 {[%emt 0:00:24]} 7. exd4 {[%emt 0:03:00]} cxd4 {[%emt 0:00:11]} 8. d3 {[%emt 0:00:02]} Be7 {[%emt 0:00:47]} 9. Re1 {[%emt 0:03:02]} O-O {[%emt 0:00:53]} 10. Na3 {[%emt 0:00:30]} f6 {[%emt 0:07:12]} 11. Nc2 {[%emt 0:06:23]} a5 {[%emt 0:01:56]} 12. Rb1 {[%emt 0:05:26]} Na6 {[%emt 0:02:16]} 13. b3 {[%emt 0:10:25]} e5 {[%emt 0:02:46][%cal Oa5a4]} 14. a3 {[%emt 0:00:49]} Rb8 {[%emt 0:07:34]} 15. Nh4 {[%emt 0:11:03]} g5 {[%emt 0:05:35]} 16. Nf3 {[%emt 0:15:07]} ({Better is} 16. Be4 $11) 16... Bf5 $15 {[%emt 0:03:15]} 17. Nd2 {[%emt 0:00:29]} Bxd3 {[%emt 0:10:59] Threatens to win with ...Nc5.} 18. Ne4 {[%emt 0:00:16]} Bxc2 {[%emt 0:02:40]} 19. Qxc2 {[%emt 0:00:01]} f5 {[%emt 0:00:16]} (19... Kh8 $17) 20. Nd2 $11 {[%emt 0:00:45]} e4 {[%emt 0:07:35] [#] Hoping for ...Nc5.} 21. g4 $1 {[%emt 0:03:48] The position is equal.} Bc5 {[%emt 0:12:10] aiming for ...d3.} (21... fxg4 22. Nxe4 (22. Qxe4 Nc5 $14) 22... Nc7 23. c5) 22. gxf5 {[%emt 0:06:35]} d3 $1 {[%emt 0:01:08]} 23. Qd1 {[%emt 0:00:06]} Bxf2+ $1 {[%emt 0:01:08]} 24. Kxf2 {[%emt 0:00:07]} Qd4+ {[%emt 0:00:20]} 25. Kg3 {[%emt 0:00:07]} Qd6+ {[%emt 0:11:47]} 26. Kf2 {[%emt 0:00:04]} Qd4+ {[%emt 0:07:26]} 27. Kg3 {[%emt 0:00:01]} Qd6+ {[%emt 0:00:33]} 28. Kf2 {[%emt 0:00:02] Weighted Error Value: White=0.11 (very precise) /Black=0.05 (flawless) .  Mistake:       	White=1     	Black=1      Inaccurate:     	White=1     	Black=2      OK:         	White=4     	Black=12     Best:        	White=6     	Black=3      Strong:       	White=1     	Black=2} 1/2-1/2

[Event "French Top 16-A 2024"]
[Site "Chartres"]
[Date "2024.06.01"]
[Round "1.11"]
[White "Demuth, Adrien"]
[Black "Laurent-Paoli, Pierre"]
[Result "1/2-1/2"]
[ECO "A14"]
[WhiteElo "2506"]
[BlackElo "2576"]
[Annotator "TA"]
[PlyCount "104"]
[EventDate "2024.06.01"]
[EventType "team-tourn"]
[EventCountry "FRA"]
[SourceTitle "playchess.com"]
[Source "ChessBase"]
[SourceQuality "1"]
[TimeControl "40/5400+30:1800+30"]

{[%evp 19,104,0,0,0,0,0,0,0,0,0,14,0,0,0,0,-22,-16,-16,-10,-60,-40,-45,-45,-50,-27,-60,-29,-29,-31,-22,-8,-11,-16,-20,0,0,0,0,0,0,0,0,0,0,0,0,0,-8,-6,-6,-6,-16,0,0,0,0,0,0,0,0,0,0,0,0,14,14,18,20,20,19,20,23,27,34,170,4,8,8,8,8,8,8,8,0,8,0,12]} 1. Nf3 {[%emt 0:00:03]} d5 {[%emt 0:01:23]} 2. g3 {[%emt 0:00:12]} Nf6 {[%emt 0:00:20]} 3. Bg2 {[%emt 0:00:06]} e6 {[%emt 0:00:07]} 4. O-O {[%emt 0:00:30]} Be7 {[%emt 0:00:38]} 5. c4 {[%emt 0:00:40]} O-O {[%emt 0:00:11]} 6. b3 {[%emt 0:00:34]} d4 {[%emt 0:00:23]} 7. e3 {[%emt 0:01:59]} c5 {[%emt 0:00:58]} 8. exd4 {[%emt 0:03:07]} cxd4 {[%emt 0:00:16]} 9. Bb2 {[%emt 0:00:12]} Nc6 {[%emt 0:00:34]} 10. Re1 {[%emt 0:00:04]} Bc5 {[%emt 0:02:39]} 11. d3 {[%emt 0:05:18]} a5 {[%emt 0:01:31]} 12. Nbd2 {[%emt 0:20:50]} Re8 {[%emt 0:02:10]} 13. Ne5 {[%emt 0:02:24]} Nxe5 {[%emt 0:00:06]} 14. Rxe5 {[%emt 0:00:04]} Nd7 {[%emt 0:00:26]} 15. Re1 {[%emt 0:07:00]} e5 {[%emt 0:00:16]} 16. a3 {[%emt 0:19:46]} Ra7 {[%emt 0:06:39]} 17. Ne4 {[%emt 0:06:36]} b6 {[%emt 0:00:11]} 18. Bc1 {[%emt 0:06:09]} Bb7 {[%emt 0:08:53]} 19. g4 {[%emt 0:00:20]} (19. Qg4 $11) 19... Bf8 {[%emt 0:07:44]} 20. Ra2 {[%emt 0:04:09]} Nc5 {[%emt 0:13:32]} 21. Rae2 {[%emt 0:02:04]} Ne6 {[%emt 0:00:05]} (21... Qh4 {feels hotter.} 22. Nxc5 Bxg2 23. Rxe5 Qh3) 22. h3 {[%emt 0:06:32]} Qd7 {[%emt 0:05:10]} 23. a4 {[%emt 0:03:46]} Bb4 {[%emt 0:04:50]} 24. Rf1 {[%emt 0:00:04]} Raa8 {[%emt 0:00:29][%cal Ba7a8,Ba8e8,Be8e2][%mdl 32]} 25. f4 {[%emt 0:03:10]} exf4 {[%emt 0:02:39]} 26. Bxf4 {[%emt 0:00:03]} Nc5 {[%emt 0:06:39]} 27. Nxc5 {[%emt 0:04:13]} bxc5 {[%emt 0:00:06]} 28. Bxb7 {[%emt 0:00:33]} Qxb7 {[%emt 0:00:26]} 29. Rxe8+ {[%emt 0:00:21]} Rxe8 {[%emt 0:00:05]} 30. Qf3 {[%emt 0:00:03]} Qxf3 {[%emt 0:00:55]} 31. Rxf3 $11 {[%emt 0:00:02][%mdl 4096] Endgame. KRB-KRB} f6 {[%emt 0:04:16]} 32. Kg2 {[%emt 0:00:50]} Kf7 {[%emt 0:03:21]} 33. Rf1 {[%emt 0:02:43]} Re2+ {[%emt 0:00:57]} 34. Rf2 $1 {[%emt 0:00:07]} Re6 {[%emt 0:00:08]} 35. Rf1 {[%emt 0:02:00]} Bc3 {[%emt 0:04:48]} 36. h4 {[%emt 0:00:20]} Kg6 {[%emt 0:02:24]} 37. h5+ {[%emt 0:01:01]} Kf7 {[%emt 0:00:49]} 38. g5 {[%emt 0:00:42]} Rb6 {[%emt 0:01:02]} 39. gxf6 {[%emt 0:00:27]} gxf6 {[%emt 0:01:16]} 40. Bg5 {[%emt 0:00:55]} Kg7 {[%emt 0:07:52]} 41. Bh4 {[%emt 0:02:38]} Bd2 {[%emt 0:03:44]} 42. Rf5 {[%emt 0:02:26]} Bb4 $1 {[%emt 0:21:48]} 43. Kf3 {[%emt 0:04:58] Hoping for Rd5.} Re6 {[%emt 0:00:07]} 44. Kg4 {[%emt 0:01:16] [#] Rd5 is the strong threat.} Kf7 {[%emt 0:03:21]} 45. Rd5 {[%emt 0:08:12]} Ke7 {[%emt 0:05:30] Repels Rd7+} 46. Kf5 {[%emt 0:01:04]} Ba3 {[%emt 0:01:25]} (46... Rb6 $14) 47. h6 $2 {[%emt 0:02:04]} (47. Bg3 $18) 47... Bb4 $1 {[%emt 0:02:31] The position is equal.} 48. Bg3 {[%emt 0:03:48]} Rc6 {[%emt 0:00:27] Against Bc7} 49. Bf4 {[%emt 0:02:51]} Bc3 {[%emt 0:00:04]} 50. Bc1 {[%emt 0:00:42]} Bb4 {[%emt 0:00:08] Prevents Ba3.} 51. Bf4 {[%emt 0:00:03]} Bc3 {[%emt 0:00:03]} 52. Bc1 {[%emt 0:01:23]} Bb4 $1 {[%emt 0:10:08] Wards off Ba3.   Weighted Error Value: White=0.12 (very precise) /Black=0.10 (very precise) .  Missed win:     	White=1     	---        Mistake:       	White=1     	Black=1      Inaccurate:     	White=1     	Black=1      OK:         	White=20    	Black=14     Best:        	---       	Black=2      Strong:       	White=1     	Black=3} 1/2-1/2

[Event "French Top 16-A 2024"]
[Site "Chartres"]
[Date "2024.06.01"]
[Round "1.11"]
[White "Ramirez Garcia, Jorge Alberto"]
[Black "Libiszewski, Fabien"]
[Result "0-1"]
[ECO "C01"]
[WhiteElo "2266"]
[BlackElo "2498"]
[Annotator "RC"]
[PlyCount "58"]
[EventDate "2024.06.01"]
[EventType "team-tourn"]
[EventCountry "FRA"]
[SourceTitle "playchess.com"]
[Source "ChessBase"]
[SourceQuality "1"]
[TimeControl "40/5400+30:1800+30"]

1. e4 {[%emt 0:00:03]} e6 {[%emt 0:00:14]} 2. d4 {[%emt 0:00:09]} d5 {[%emt 0:00:05]} 3. exd5 {[%emt 0:00:29]} exd5 {[%emt 0:00:07]} 4. Nf3 {[%emt 0:00:07]} Nf6 {[%emt 0:00:16]} 5. h3 {[%emt 0:02:54]} Bf5 {[%emt 0:10:41]} 6. Bd3 {[%emt 0:01:28]} Bxd3 {[%emt 0:03:06]} 7. Qxd3 {[%emt 0:00:07]} c6 {[%emt 0:00:22]} 8. Bf4 {[%emt 0:00:43]} Qe7+ {[%emt 0:12:58]} 9. Qe2 {[%emt 0:04:32]} Nbd7 {[%emt 0:06:34]} 10. Nbd2 {[%emt 0:06:22]} O-O-O {[%emt 0:06:52]} 11. Qxe7 {[%emt 0:14:08]} Bxe7 {[%emt 0:00:03]} 12. O-O-O {[%emt 0:00:39]} Ne4 {[%emt 0:07:27]} 13. Nxe4 {[%emt 0:18:47]} dxe4 {[%emt 0:01:04]} 14. Ng5 {[%emt 0:03:00]} Bxg5 {[%emt 0:01:33]} 15. Bxg5 {[%emt 0:00:12]} f6 {[%emt 0:03:29]} 16. Bf4 {[%emt 0:00:32]} Nb6 {[%emt 0:02:20]} 17. Rhe1 {[%emt 0:02:44]} Rhe8 {[%emt 0:00:42]} 18. Bh2 {[%emt 0:04:55]} Nd5 {[%emt 0:04:06]} 19. Re2 {[%emt 0:07:25]} g5 {[%emt 0:11:32]} 20. Rde1 {[%emt 0:15:21]} f5 {[%emt 0:02:04]} 21. Be5 {[%emt 0:04:52]} Nf4 {[%emt 0:04:13]} 22. Bxf4 {[%emt 0:04:17]} gxf4 {[%emt 0:00:07]} 23. c3 {[%emt 0:02:43]} Rg8 {[%emt 0:02:38]} 24. f3 {[%emt 0:00:12]} e3 {[%emt 0:00:16]} 25. g4 {[%emt 0:00:32]} h5 {[%emt 0:04:05]} 26. Rg1 {[%emt 0:03:12]} fxg4 {[%emt 0:03:40]} 27. hxg4 {[%emt 0:00:18]} hxg4 {[%emt 0:00:32]} 28. Rxg4 {[%emt 0:01:02]} Rxg4 {[%emt 0:01:02]} 29. fxg4 {[%emt 0:00:02]} Rf8 {[%emt 0:02:30]} 0-1

[Event "French Top 16-A 2024"]
[Site "Chartres"]
[Date "2024.06.01"]
[Round "1.12"]
[White "Girel, Joseph"]
[Black "Parligras, Mircea-Emilian"]
[Result "1/2-1/2"]
[ECO "E01"]
[WhiteElo "2477"]
[BlackElo "2561"]
[Annotator "TA"]
[PlyCount "61"]
[EventDate "2024.06.01"]
[EventType "team-tourn"]
[EventCountry "FRA"]
[SourceTitle "playchess.com"]
[Source "ChessBase"]
[SourceQuality "1"]
[TimeControl "40/5400+30:1800+30"]

{[%evp 9,61,0,0,0,0,0,8,0,0,-10,-11,-16,-14,-26,0,6,7,-11,-13,-18,10,0,4,2,12,24,13,4,11,16,12,15,10,15,13,14,10,12,0,0,0,0,21,-8,-13,-8,0,0,0,0,0,-53,-56,-68]} 1. d4 {[%emt 0:00:18]} Nf6 {[%emt 0:00:11]} 2. c4 {[%emt 0:00:14]} e6 {[%emt 0:00:06]} 3. Nf3 {[%emt 0:00:29]} d5 {[%emt 0:00:09]} 4. g3 {[%emt 0:00:45]} Bb4+ {[%emt 0:00:29]} 5. Nbd2 {[%emt 0:00:29]} dxc4 {[%emt 0:01:29]} 6. a3 {[%emt 0:00:26]} Bxd2+ {[%emt 0:01:10]} 7. Bxd2 {[%emt 0:00:08]} Bd7 {[%emt 0:10:58]} 8. e3 {[%emt 0:00:57][%cal Of3e5] The position is equal.} Bb5 {[%emt 0:02:46]} 9. a4 {[%emt 0:00:11]} Ba6 {[%emt 0:01:33]} 10. Qc2 {[%emt 0:00:19]} Qd5 {[%emt 0:05:44]} 11. Bg2 {[%emt 0:00:14]} Qf5 {[%emt 0:11:47]} 12. Qxf5 {[%emt 0:02:35]} exf5 {[%emt 0:00:05]} 13. Rc1 {[%emt 0:00:50]} Nbd7 {[%emt 0:06:47][%cal Bb8d7,Bd7b6,Bb6d5][%mdl 32]} 14. Bf1 {[%emt 0:06:46]} Nb6 {[%emt 0:09:53]} 15. a5 {[%emt 0:09:29]} Nbd5 {[%emt 0:00:07]} 16. Ne5 {[%emt 0:00:37][%cal Of2f3]} Ne4 {[%emt 0:08:40]} 17. Bxc4 {[%emt 0:14:46]} Bxc4 {[%emt 0:00:08]} 18. Rxc4 {[%emt 0:00:03]} f6 {[%emt 0:04:12]} 19. Nd3 {[%emt 0:00:43]} O-O-O {[%emt 0:07:16]} 20. f3 {[%emt 0:01:18]} Nxd2 {[%emt 0:02:34]} 21. Kxd2 {[%emt 0:00:04]} Rhe8 {[%emt 0:00:17]} 22. Re1 {[%emt 0:00:34]} Rd6 {[%emt 0:03:08]} 23. e4 {[%emt 0:12:20]} fxe4 {[%emt 0:00:25]} 24. fxe4 {[%emt 0:00:09]} Ne7 {[%emt 0:00:05]} 25. Rec1 {[%emt 0:05:52]} Kb8 {[%emt 0:04:50]} 26. b4 {[%emt 0:03:49]} (26. R1c3 $5) 26... c6 {[%emt 0:06:01]} 27. Rf1 {[%emt 0:06:31]} Red8 {[%emt 0:07:45]} 28. Ke3 {[%emt 0:01:43]} b5 {[%emt 0:00:56]} 29. axb6 {[%emt 0:00:10]} axb6 {[%emt 0:00:03]} 30. Nf4 {[%emt 0:17:39]} (30. g4 $11) 30... b5 $15 {[%emt 0:00:13]} 31. Rc3 {[%emt 0:01:41] Weighted Error Value: White=0.08 (flawless) /Black=0.04 (flawless) .  Mistake:       	White=1     	---        Inaccurate:     	White=1     	Black=2      OK:         	White=9     	Black=15     Best:        	White=1     	---} 1/2-1/2

[Event "French Top 16-A 2024"]
[Site "Chartres"]
[Date "2024.06.01"]
[Round "1.12"]
[White "Grigorian, Roudolph"]
[Black "Bosc, Seraphina"]
[Result "1-0"]
[ECO "C11"]
[WhiteElo "2116"]
[BlackElo "2220"]
[Annotator "RC"]
[PlyCount "101"]
[EventDate "2024.06.01"]
[EventType "team-tourn"]
[EventCountry "FRA"]
[SourceTitle "playchess.com"]
[Source "ChessBase"]
[SourceQuality "1"]
[TimeControl "40/5400+30:1800+30"]

1. e4 {[%emt 0:00:05]} e6 {[%emt 0:00:30]} 2. d4 {[%emt 0:00:08]} d5 {[%emt 0:00:05]} 3. Nc3 {[%emt 0:00:16]} Nf6 {[%emt 0:01:06]} 4. e5 {[%emt 0:00:10]} Nfd7 {[%emt 0:00:05]} 5. Nf3 {[%emt 0:00:13]} c5 {[%emt 0:00:42]} 6. dxc5 {[%emt 0:00:09]} Bxc5 {[%emt 0:04:53]} 7. Bd3 {[%emt 0:01:55]} Nc6 {[%emt 0:00:43]} 8. Bf4 {[%emt 0:00:58]} Be7 {[%emt 0:11:52]} 9. h4 {[%emt 0:07:56]} a6 {[%emt 0:06:07]} 10. Qe2 {[%emt 0:03:42]} Nc5 {[%emt 0:00:58]} 11. h5 {[%emt 0:01:29]} Qb6 {[%emt 0:08:25]} 12. O-O-O {[%emt 0:02:42]} Bd7 {[%emt 0:09:52]} 13. h6 {[%emt 0:03:22]} g6 {[%emt 0:00:05]} 14. Bg5 {[%emt 0:09:59]} Nd4 {[%emt 0:22:45]} 15. Qe3 {[%emt 0:11:44]} Nxf3 {[%emt 0:00:25]} 16. Bxe7 {[%emt 0:00:53]} Nxd3+ {[%emt 0:00:09]} 17. Rxd3 {[%emt 0:00:58]} Qxe3+ {[%emt 0:00:31]} 18. Rxe3 {[%emt 0:00:05]} Kxe7 {[%emt 0:04:24]} 19. Rxf3 {[%emt 0:00:08]} Bc6 {[%emt 0:00:41]} 20. Ne2 {[%emt 0:03:01]} d4 {[%emt 0:00:57]} 21. Rf4 {[%emt 0:07:42]} Bxg2 {[%emt 0:07:13]} 22. Rd1 {[%emt 0:02:25]} Rhd8 {[%emt 0:02:05]} 23. Nxd4 {[%emt 0:00:26]} Rd5 {[%emt 0:04:58]} 24. Rg1 {[%emt 0:11:19]} Rad8 {[%emt 0:01:53]} 25. c3 {[%emt 0:00:08]} Bh3 {[%emt 0:00:04]} 26. Re4 {[%emt 0:00:31]} Bf5 {[%emt 0:04:22]} 27. Re3 {[%emt 0:01:13]} Rc8 {[%emt 0:00:36]} 28. Rd1 {[%emt 0:00:33]} Rcd8 {[%emt 0:03:29]} 29. f4 {[%emt 0:00:34]} R5d7 {[%emt 0:00:56]} 30. a4 {[%emt 0:00:50]} Rd5 {[%emt 0:01:17]} 31. b3 {[%emt 0:00:48]} R5d7 {[%emt 0:01:07]} 32. Kb2 {[%emt 0:00:22]} Rg8 {[%emt 0:01:42]} 33. Rg1 {[%emt 0:01:36]} Rc8 {[%emt 0:00:54]} 34. a5 {[%emt 0:00:32]} Rcd8 {[%emt 0:00:36]} 35. Ra1 {[%emt 0:00:12]} Rd5 {[%emt 0:00:27]} 36. Ra4 {[%emt 0:00:07]} R8d7 {[%emt 0:00:16]} 37. Re1 {[%emt 0:00:21]} Rc5 {[%emt 0:00:46]} 38. Rb4 {[%emt 0:01:37]} Bg4 {[%emt 0:00:58]} 39. Rb6 {[%emt 0:00:34]} Kd8 {[%emt 0:00:34]} 40. b4 {[%emt 0:00:14]} Rcd5 {[%emt 0:00:30]} 41. Nb3 {[%emt 0:30:26]} Kc8 {[%emt 0:01:02]} 42. Nc5 {[%emt 0:00:00]} Rd2+ {[%emt 0:11:09]} 43. Ka3 {[%emt 0:00:00]} Rc7 {[%emt 0:01:21]} 44. Rd6 {[%emt 0:00:00]} Rh2 {[%emt 0:00:43]} 45. Re4 {[%emt 0:00:00]} Rxh6 {[%emt 0:04:09]} 46. Red4 {[%emt 0:00:00]} Kb8 {[%emt 0:00:03]} 47. Rd8+ {[%emt 0:00:00]} Ka7 {[%emt 0:03:16]} 48. R4d7 {[%emt 0:00:00]} Rxc5 {[%emt 0:04:30]} 49. bxc5 {[%emt 0:00:00]} Rh3 {[%emt 0:00:48]} 50. Rc7 {[%emt 0:00:00]} Rxc3+ {[%emt 0:01:30]} 51. Kb4 {[%emt 0:00:00]} 1-0